[Event "*** Titled Tuesday Blitz"]
[Site "Chess.com"]
[Date "2020.05.12"]
[Round "1"]
[White "Kezin_Roman"]
[Black "dianosky"]
[Result "1-0"]
[WhiteElo "2787"]
[BlackElo "2411"]
[TimeControl "180+1"]
[EndTime "10:08:58 PDT"]
[Termination "Kezin_Roman won by checkmate"]

1. d4 {[%clk 0:03:00.9]} 1... d5 {[%clk 0:02:59.8]} 2. c4 {[%clk 0:03:00.9]}
2... dxc4 {[%clk 0:03:00.7]} 3. e3 {[%clk 0:03:00.9]} 3... a6 {[%clk 0:03:01.6]}
4. Bxc4 {[%clk 0:03:00.2]} 4... Nf6 {[%clk 0:03:02.5]} 5. Nf3 {[%clk 0:02:59.7]}
5... b5 {[%clk 0:03:03.1]} 6. Bd3 {[%clk 0:03:00.1]} 6... e6 {[%clk 0:03:03.8]}
7. Qe2 {[%clk 0:03:00.6]} 7... c5 {[%clk 0:03:02.9]} 8. dxc5 {[%clk 0:03:01.5]}
8... Nbd7 {[%clk 0:03:02]} 9. b4 {[%clk 0:02:58.8]} 9... Bb7 {[%clk 0:02:58.7]}
10. Bb2 {[%clk 0:02:58.2]} 10... Be7 {[%clk 0:02:58.3]} 11. O-O {[%clk
0:02:57.7]} 11... O-O {[%clk 0:02:58.5]} 12. Nbd2 {[%clk 0:02:58.2]} 12... Qc7
{[%clk 0:02:56.6]} 13. Rfd1 {[%clk 0:02:53.4]} 13... Rad8 {[%clk 0:02:54.2]} 14.
h3 {[%clk 0:02:51]} 14... Nb8 {[%clk 0:02:54.2]} 15. Ne5 {[%clk 0:02:42.2]}
15... Nd5 {[%clk 0:02:52]} 16. a3 {[%clk 0:02:40.2]} 16... a5 {[%clk 0:02:52.3]}
17. bxa5 {[%clk 0:01:51.6]} 17... Qxa5 {[%clk 0:02:51.5]} 18. Rac1 {[%clk
0:01:45.8]} 18... b4 {[%clk 0:02:30.3]} 19. c6 {[%clk 0:00:54.7]} 19... bxa3
{[%clk 0:02:26.8]} 20. Ndc4 {[%clk 0:00:44.3]} 20... Qa7 {[%clk 0:02:05.9]} 21.
Bd4 {[%clk 0:00:43]} 21... Qa8 {[%clk 0:01:54.2]} 22. cxb7 {[%clk 0:00:42.4]}
22... Qxb7 {[%clk 0:01:54.4]} 23. Rb1 {[%clk 0:00:41.1]} 23... Qa8 {[%clk
0:01:51.6]} 24. Qh5 {[%clk 0:00:33.2]} 24... f5 {[%clk 0:01:40.3]} 25. Qe2
{[%clk 0:00:26.8]} 25... Nc6 {[%clk 0:01:27.1]} 26. Nxc6 {[%clk 0:00:26.1]}
26... Qxc6 {[%clk 0:01:27.4]} 27. Ra1 {[%clk 0:00:26.5]} 27... Ra8 {[%clk
0:01:25.1]} 28. Ne5 {[%clk 0:00:26.9]} 28... Qa4 {[%clk 0:01:20]} 29. Bb5 {[%clk
0:00:26.2]} 29... Qa5 {[%clk 0:01:17.7]} 30. Bc4 {[%clk 0:00:26.4]} 30... Rac8
{[%clk 0:01:15.5]} 31. Bxd5 {[%clk 0:00:20.5]} 31... Qxd5 {[%clk 0:01:15.7]} 32.
Qd3 {[%clk 0:00:16.5]} 32... Rfd8 {[%clk 0:01:14.4]} 33. f4 {[%clk 0:00:16.6]}
33... Rb8 {[%clk 0:01:01.3]} 34. Rd2 {[%clk 0:00:14.3]} 34... Rb3 {[%clk
0:00:58.7]} 35. Qc4 {[%clk 0:00:12.6]} 35... Bb4 {[%clk 0:00:53.1]} 36. Qxd5
{[%clk 0:00:11.6]} 36... Rxd5 {[%clk 0:00:53.3]} 37. Rc2 {[%clk 0:00:11.5]}
37... h6 {[%clk 0:00:46.8]} 38. Kf2 {[%clk 0:00:09.2]} 38... Rxd4 {[%clk
0:00:41.8]} 39. exd4 {[%clk 0:00:08.7]} 39... Bc3 {[%clk 0:00:42.2]} 40. Rxc3
{[%clk 0:00:06.8]} 40... Rxc3 {[%clk 0:00:42.6]} 41. Nf3 {[%clk 0:00:07.1]}
41... Rb3 {[%clk 0:00:42.3]} 42. Ke2 {[%clk 0:00:06.9]} 42... Rb2+ {[%clk
0:00:40.7]} 43. Kd3 {[%clk 0:00:06.8]} 43... a2 {[%clk 0:00:41.6]} 44. Nd2
{[%clk 0:00:06.3]} 44... Kf7 {[%clk 0:00:41.8]} 45. Kc3 {[%clk 0:00:06.7]} 45...
Rb7 {[%clk 0:00:40.5]} 46. Rxa2 {[%clk 0:00:07.1]} 46... Rc7+ {[%clk 0:00:41.2]}
47. Kd3 {[%clk 0:00:07.6]} 47... Rc1 {[%clk 0:00:41]} 48. Nf3 {[%clk 0:00:07.9]}
48... Rd1+ {[%clk 0:00:40.5]} 49. Rd2 {[%clk 0:00:08.3]} 49... Ra1 {[%clk
0:00:40.5]} 50. Re2 {[%clk 0:00:09.2]} 50... Ra3+ {[%clk 0:00:40.3]} 51. Kd2
{[%clk 0:00:09.8]} 51... Kf6 {[%clk 0:00:40.9]} 52. Ke1 {[%clk 0:00:09]} 52...
Rd3 {[%clk 0:00:40.2]} 53. Kf2 {[%clk 0:00:09]} 53... Rd1 {[%clk 0:00:38.7]} 54.
Rd2 {[%clk 0:00:09.2]} 54... Rb1 {[%clk 0:00:38.3]} 55. d5 {[%clk 0:00:09.6]}
55... exd5 {[%clk 0:00:39]} 56. Rxd5 {[%clk 0:00:10.4]} 56... Rb2+ {[%clk
0:00:39.8]} 57. Kg3 {[%clk 0:00:10.2]} 57... Rb6 {[%clk 0:00:39]} 58. Nd4 {[%clk
0:00:09.5]} 58... g6 {[%clk 0:00:38.8]} 59. Nf3 {[%clk 0:00:10]} 59... Re6
{[%clk 0:00:36.2]} 60. Rc5 {[%clk 0:00:09.1]} 60... g5 {[%clk 0:00:35.3]} 61.
Rc4 {[%clk 0:00:07.5]} 61... Re3 {[%clk 0:00:35.8]} 62. Rc6+ {[%clk 0:00:06.7]}
62... Kg7 {[%clk 0:00:35]} 63. fxg5 {[%clk 0:00:07]} 63... hxg5 {[%clk
0:00:35.6]} 64. Kf2 {[%clk 0:00:07.6]} 64... Ra3 {[%clk 0:00:34.6]} 65. Nxg5
{[%clk 0:00:07.8]} 65... Ra2+ {[%clk 0:00:35]} 66. Kg1 {[%clk 0:00:08.3]} 66...
Ra3 {[%clk 0:00:35.9]} 67. Nf3 {[%clk 0:00:07.7]} 67... Ra2 {[%clk 0:00:35.9]}
68. Kh2 {[%clk 0:00:07.9]} 68... Ra3 {[%clk 0:00:36.3]} 69. Kg3 {[%clk
0:00:08.4]} 69... Ra4 {[%clk 0:00:37.2]} 70. Rc5 {[%clk 0:00:08.4]} 70... Kf6
{[%clk 0:00:37.4]} 71. Rc6+ {[%clk 0:00:08.3]} 71... Kf7 {[%clk 0:00:36.9]} 72.
h4 {[%clk 0:00:08.6]} 72... Ke7 {[%clk 0:00:36.4]} 73. h5 {[%clk 0:00:06.6]}
73... Rg4+ {[%clk 0:00:36.6]} 74. Kh3 {[%clk 0:00:06.5]} 74... Kf7 {[%clk
0:00:37.2]} 75. Rg6 {[%clk 0:00:06.1]} 75... Rc4 {[%clk 0:00:35.7]} 76. Ra6
{[%clk 0:00:05.8]} 76... Kg7 {[%clk 0:00:35.8]} 77. h6+ {[%clk 0:00:06]} 77...
Kh7 {[%clk 0:00:36.1]} 78. Ng5+ {[%clk 0:00:06.3]} 78... Kg8 {[%clk 0:00:35.2]}
79. Ra8+ {[%clk 0:00:07.2]} 79... Rc8 {[%clk 0:00:33.5]} 80. Rxc8# {[%clk
0:00:08.1]} 1-0

[Event "*** Titled Tuesday Blitz"]
[Site "Chess.com"]
[Date "2020.05.12"]
[Round "1"]
[White "Barbus89"]
[Black "Paladin61"]
[Result "1-0"]
[WhiteElo "2372"]
[BlackElo "2669"]
[TimeControl "180+1"]
[EndTime "10:08:58 PDT"]
[Termination "Barbus89 won on time"]

1. d4 {[%clk 0:03:00.9]} 1... Nf6 {[%clk 0:02:59.2]} 2. Nf3 {[%clk 0:03:00.3]}
2... g6 {[%clk 0:02:59]} 3. g3 {[%clk 0:03:00.2]} 3... Bg7 {[%clk 0:02:58.8]} 4.
Bg2 {[%clk 0:03:01.1]} 4... O-O {[%clk 0:02:58.6]} 5. O-O {[%clk 0:03:02]} 5...
d6 {[%clk 0:02:58.7]} 6. Nc3 {[%clk 0:03:01.5]} 6... d5 {[%clk 0:02:49.1]} 7.
Bf4 {[%clk 0:03:00]} 7... c6 {[%clk 0:02:47.4]} 8. Qd2 {[%clk 0:02:56]} 8... Bf5
{[%clk 0:02:29.5]} 9. Ne5 {[%clk 0:02:53.4]} 9... Nbd7 {[%clk 0:02:26.9]} 10. h3
{[%clk 0:02:53.2]} 10... h5 {[%clk 0:02:19.8]} 11. Rad1 {[%clk 0:02:44.2]} 11...
Re8 {[%clk 0:02:06]} 12. Rfe1 {[%clk 0:02:40.7]} 12... Qa5 {[%clk 0:01:53.8]}
13. a3 {[%clk 0:02:20.3]} 13... Rad8 {[%clk 0:01:49.2]} 14. Kh2 {[%clk
0:01:52.6]} 14... Nf8 {[%clk 0:01:35.3]} 15. Bh6 {[%clk 0:01:47]} 15... Bh8
{[%clk 0:01:31]} 16. Bf3 {[%clk 0:01:43.1]} 16... Qc7 {[%clk 0:01:13.8]} 17. Kg2
{[%clk 0:01:41.4]} 17... Ne4 {[%clk 0:01:07.2]} 18. Bxe4 {[%clk 0:01:27.7]}
18... dxe4 {[%clk 0:01:07.1]} 19. g4 {[%clk 0:00:49.6]} 19... hxg4 {[%clk
0:01:06.2]} 20. hxg4 {[%clk 0:00:49.5]} 20... Bc8 {[%clk 0:01:05.9]} 21. Qf4
{[%clk 0:00:45.3]} 21... Bxe5 {[%clk 0:00:48.2]} 22. dxe5 {[%clk 0:00:46.2]}
22... Ne6 {[%clk 0:00:44.9]} 23. Qg3 {[%clk 0:00:44.3]} 23... Rxd1 {[%clk
0:00:38.1]} 24. Rxd1 {[%clk 0:00:43.7]} 24... Rd8 {[%clk 0:00:38.1]} 25. Rh1
{[%clk 0:00:44.3]} 25... b6 {[%clk 0:00:30.4]} 26. Qh2 {[%clk 0:00:40.3]} 26...
c5 {[%clk 0:00:17.3]} 27. Bg7 {[%clk 0:00:31.4]} 27... f6 {[%clk 0:00:14]} 28.
Qh7+ {[%clk 0:00:29.8]} 28... Kf7 {[%clk 0:00:13.3]} 29. Bxf6+ {[%clk
0:00:30.1]} 29... Ke8 {[%clk 0:00:12.9]} 30. Qxg6+ {[%clk 0:00:30.1]} 30... Kd7
{[%clk 0:00:12.5]} 31. Rh7 {[%clk 0:00:28.3]} 31... Re8 {[%clk 0:00:10.6]} 32.
Qf5 {[%clk 0:00:26.7]} 32... Bb7 {[%clk 0:00:08.6]} 33. e3 {[%clk 0:00:24.6]}
33... Qc6 {[%clk 0:00:07.6]} 34. g5 {[%clk 0:00:23]} 34... Kd8 {[%clk
0:00:06.8]} 35. Bxe7+ {[%clk 0:00:19]} 35... Rxe7 {[%clk 0:00:06.7]} 36. Rxe7
{[%clk 0:00:18.3]} 36... Kxe7 {[%clk 0:00:06.9]} 37. Qf6+ {[%clk 0:00:18.7]}
37... Ke8 {[%clk 0:00:05.6]} 38. g6 {[%clk 0:00:18.3]} 38... Qd7 {[%clk
0:00:05.9]} 39. Nb5 {[%clk 0:00:15.3]} 39... Qe7 {[%clk 0:00:02.3]} 40. Nd6+
{[%clk 0:00:14.2]} 40... Kd7 {[%clk 0:00:02.6]} 41. g7 {[%clk 0:00:10.4]} 41...
Qxg7+ {[%clk 0:00:01.7]} 42. Qxg7+ {[%clk 0:00:10.1]} 42... Nxg7 {[%clk
0:00:02.6]} 43. Nc4 {[%clk 0:00:10]} 43... Ba6 {[%clk 0:00:02.1]} 44. Nd2 {[%clk
0:00:09.8]} 44... Ne6 {[%clk 0:00:01.9]} 45. Kg3 {[%clk 0:00:10.2]} 45... Bb7
{[%clk 0:00:02.5]} 46. Kg4 {[%clk 0:00:09.3]} 46... Bc6 {[%clk 0:00:03.1]} 47.
Kf5 {[%clk 0:00:09.3]} 47... Ke7 {[%clk 0:00:04]} 48. Nxe4 {[%clk 0:00:09.4]}
48... Ng7+ {[%clk 0:00:02.8]} 49. Kf4 {[%clk 0:00:05.7]} 49... Ne6+ {[%clk
0:00:02.8]} 50. Kf5 {[%clk 0:00:06.1]} 50... Ng7+ {[%clk 0:00:03.1]} 51. Kf4
{[%clk 0:00:06.5]} 51... Bd5 {[%clk 0:00:03.7]} 52. Nd6 {[%clk 0:00:05.4]} 52...
Ne6+ {[%clk 0:00:03.8]} 53. Kf5 {[%clk 0:00:05]} 53... Bc6 {[%clk 0:00:04.1]}
54. Nc8+ {[%clk 0:00:04.5]} 54... Kd7 {[%clk 0:00:04.1]} 55. Nxa7 {[%clk
0:00:05.4]} 55... Bb7 {[%clk 0:00:03]} 56. Nb5 {[%clk 0:00:05]} 56... Ng7+
{[%clk 0:00:02.8]} 57. Kf6 {[%clk 0:00:04.9]} 57... Ne8+ {[%clk 0:00:03]} 58.
Kf7 {[%clk 0:00:04.8]} 58... Bd5+ {[%clk 0:00:03.9]} 59. Kg6 {[%clk 0:00:04.6]}
59... Ke6 {[%clk 0:00:04.2]} 60. f4 {[%clk 0:00:04.2]} 60... Be4+ {[%clk
0:00:04.1]} 61. Kg5 {[%clk 0:00:03.6]} 61... Bxc2 {[%clk 0:00:04.9]} 62. b4
{[%clk 0:00:02.2]} 62... c4 {[%clk 0:00:04.3]} 63. Nc3 {[%clk 0:00:02.3]} 63...
Bd3 {[%clk 0:00:03.2]} 64. e4 {[%clk 0:00:02.4]} 64... Nc7 {[%clk 0:00:02.6]}
65. a4 {[%clk 0:00:02.1]} 65... Na6 {[%clk 0:00:02.4]} 66. a5 {[%clk 0:00:02]}
66... bxa5 {[%clk 0:00:01.9]} 67. bxa5 {[%clk 0:00:02.9]} 67... Nc5 {[%clk
0:00:02.2]} 68. f5+ {[%clk 0:00:02.5]} 68... Kxe5 {[%clk 0:00:01.7]} 69. f6
{[%clk 0:00:03.4]} 1-0

[Event "*** Titled Tuesday Blitz"]
[Site "Chess.com"]
[Date "2020.05.12"]
[Round "1"]
[White "Kingsman132"]
[Black "MikaelyanArman"]
[Result "0-1"]
[WhiteElo "2346"]
[BlackElo "2672"]
[TimeControl "180+1"]
[EndTime "10:08:58 PDT"]
[Termination "MikaelyanArman won by checkmate"]

1. e4 {[%clk 0:02:58.5]} 1... e5 {[%clk 0:03:00.1]} 2. Nf3 {[%clk 0:02:55.6]}
2... Nc6 {[%clk 0:03:00.3]} 3. Bc4 {[%clk 0:02:54.7]} 3... Bc5 {[%clk
0:02:59.6]} 4. c3 {[%clk 0:02:53.4]} 4... Nf6 {[%clk 0:02:59.4]} 5. d4 {[%clk
0:02:52.1]} 5... exd4 {[%clk 0:03:00.3]} 6. cxd4 {[%clk 0:02:51.1]} 6... Bb4+
{[%clk 0:02:59.7]} 7. Bd2 {[%clk 0:02:51.7]} 7... Bxd2+ {[%clk 0:02:58.8]} 8.
Nbxd2 {[%clk 0:02:48.9]} 8... d5 {[%clk 0:02:59]} 9. exd5 {[%clk 0:02:43.3]}
9... Nxd5 {[%clk 0:02:59.9]} 10. Qb3 {[%clk 0:02:43.9]} 10... Nce7 {[%clk
0:02:50.1]} 11. O-O {[%clk 0:02:38.5]} 11... O-O {[%clk 0:02:46.3]} 12. Rfe1
{[%clk 0:02:36.1]} 12... c6 {[%clk 0:02:43.4]} 13. a4 {[%clk 0:02:33.1]} 13...
a5 {[%clk 0:02:29.6]} 14. Ne5 {[%clk 0:02:29.3]} 14... Qc7 {[%clk 0:02:13.1]}
15. Rac1 {[%clk 0:02:22.6]} 15... Be6 {[%clk 0:02:08.7]} 16. Ndf3 {[%clk
0:02:13.5]} 16... h6 {[%clk 0:02:02.4]} 17. Qd3 {[%clk 0:02:04.5]} 17... Nb4
{[%clk 0:01:52.5]} 18. Qe4 {[%clk 0:01:59.9]} 18... Bxc4 {[%clk 0:01:49.5]} 19.
Nxc4 {[%clk 0:01:51.2]} 19... Ned5 {[%clk 0:01:44.9]} 20. Nfe5 {[%clk
0:01:41.8]} 20... Rad8 {[%clk 0:01:44.5]} 21. Qf5 {[%clk 0:01:39.6]} 21... Rfe8
{[%clk 0:01:09.3]} 22. Ne3 {[%clk 0:01:31.9]} 22... f6 {[%clk 0:01:04.8]} 23.
Nxd5 {[%clk 0:01:29]} 23... Rxd5 {[%clk 0:00:57.3]} 24. Qg6 {[%clk 0:01:25.1]}
24... Rf8 {[%clk 0:00:47.6]} 25. Ng4 {[%clk 0:01:18.1]} 25... Rg5 {[%clk
0:00:42.2]} 26. Qe4 {[%clk 0:01:14]} 26... Kh8 {[%clk 0:00:34.4]} 27. h4 {[%clk
0:01:10.1]} 27... Rd5 {[%clk 0:00:32.9]} 28. Ne3 {[%clk 0:01:03]} 28... Rd7
{[%clk 0:00:30.9]} 29. d5 {[%clk 0:01:00.6]} 29... Qd8 {[%clk 0:00:26.9]} 30.
dxc6 {[%clk 0:00:58.5]} 30... Nxc6 {[%clk 0:00:27.8]} 31. Qg6 {[%clk 0:00:55.8]}
31... Ne5 {[%clk 0:00:27.2]} 32. Qh5 {[%clk 0:00:51.7]} 32... Nd3 {[%clk
0:00:26.1]} 33. b3 {[%clk 0:00:41.3]} 33... Nxc1 {[%clk 0:00:25]} 34. Rxc1
{[%clk 0:00:40.9]} 34... Qe8 {[%clk 0:00:25.4]} 35. Qxa5 {[%clk 0:00:36.5]}
35... Qe5 {[%clk 0:00:21.9]} 36. Qxe5 {[%clk 0:00:32.9]} 36... fxe5 {[%clk
0:00:22.8]} 37. Nc4 {[%clk 0:00:29.4]} 37... e4 {[%clk 0:00:21.7]} 38. Re1
{[%clk 0:00:27.3]} 38... Rd3 {[%clk 0:00:20.2]} 39. Ne5 {[%clk 0:00:25.2]} 39...
Rd6 {[%clk 0:00:17.4]} 40. Rxe4 {[%clk 0:00:22.3]} 40... Kh7 {[%clk 0:00:17.9]}
41. Nf3 {[%clk 0:00:19.5]} 41... Rb6 {[%clk 0:00:15.9]} 42. b4 {[%clk
0:00:19.4]} 42... Rc8 {[%clk 0:00:15]} 43. a5 {[%clk 0:00:19.5]} 43... Rd6
{[%clk 0:00:14.2]} 44. Ne5 {[%clk 0:00:18.2]} 44... Rc1+ {[%clk 0:00:13.7]} 45.
Kh2 {[%clk 0:00:18.4]} 45... Rc2 {[%clk 0:00:13.7]} 46. Kg3 {[%clk 0:00:17.7]}
46... Re6 {[%clk 0:00:12.8]} 47. Re3 {[%clk 0:00:16.9]} 47... Rb2 {[%clk
0:00:11.9]} 48. Nd3 {[%clk 0:00:16.9]} 48... Rxe3+ {[%clk 0:00:11]} 49. fxe3
{[%clk 0:00:17.8]} 49... Rb3 {[%clk 0:00:11.9]} 50. Nc5 {[%clk 0:00:18.4]} 50...
Rxb4 {[%clk 0:00:11.2]} 51. a6 {[%clk 0:00:18.3]} 51... bxa6 {[%clk 0:00:10.6]}
52. Nxa6 {[%clk 0:00:19.2]} 52... Rc4 {[%clk 0:00:09.2]} 53. Nb8 {[%clk
0:00:17.5]} 53... Re4 {[%clk 0:00:08.9]} 54. Kf3 {[%clk 0:00:16.4]} 54... Rxh4
{[%clk 0:00:08.7]} 55. Nd7 {[%clk 0:00:16.6]} 55... Ra4 {[%clk 0:00:08.4]} 56.
g3 {[%clk 0:00:16.9]} 56... Kg6 {[%clk 0:00:08.4]} 57. Ne5+ {[%clk 0:00:17.4]}
57... Kf6 {[%clk 0:00:08.8]} 58. Nd3 {[%clk 0:00:17.6]} 58... Kf5 {[%clk
0:00:08.4]} 59. Nf4 {[%clk 0:00:17.7]} 59... Ra1 {[%clk 0:00:08.1]} 60. g4+
{[%clk 0:00:18]} 60... Kf6 {[%clk 0:00:08.4]} 61. Ke4 {[%clk 0:00:17.2]} 61...
g5 {[%clk 0:00:07.7]} 62. Nh5+ {[%clk 0:00:16]} 62... Kg6 {[%clk 0:00:08]} 63.
Ng3 {[%clk 0:00:16.7]} 63... Ra4+ {[%clk 0:00:07.3]} 64. Kf3 {[%clk 0:00:17.1]}
64... Rb4 {[%clk 0:00:07.9]} 65. Ne4 {[%clk 0:00:17.3]} 65... h5 {[%clk
0:00:06.5]} 66. gxh5+ {[%clk 0:00:18.2]} 66... Kxh5 {[%clk 0:00:07.2]} 67. Nf6+
{[%clk 0:00:18.8]} 67... Kh4 {[%clk 0:00:07.3]} 68. e4 {[%clk 0:00:19]} 68...
Rb3+ {[%clk 0:00:06.6]} 69. Kf2 {[%clk 0:00:19.1]} 69... g4 {[%clk 0:00:06.6]}
70. e5 {[%clk 0:00:19.1]} 70... Rb2+ {[%clk 0:00:05.9]} 71. Ke3 {[%clk
0:00:18.8]} 71... g3 {[%clk 0:00:06.2]} 72. e6 {[%clk 0:00:19.3]} 72... g2
{[%clk 0:00:06.5]} 73. e7 {[%clk 0:00:17.1]} 73... g1=Q+ {[%clk 0:00:06.6]} 74.
Kf4 {[%clk 0:00:18]} 74... Qf2+ {[%clk 0:00:06.4]} 75. Ke5 {[%clk 0:00:18]}
75... Re2+ {[%clk 0:00:06.9]} 76. Kd6 {[%clk 0:00:18]} 76... Qxf6+ {[%clk
0:00:06.4]} 77. Kd7 {[%clk 0:00:18.9]} 77... Rxe7+ {[%clk 0:00:05.2]} 78. Kd8
{[%clk 0:00:18.4]} 78... Qf8# {[%clk 0:00:06.1]} 0-1

[Event "*** Titled Tuesday Blitz"]
[Site "Chess.com"]
[Date "2020.05.12"]
[Round "1"]
[White "chegueps"]
[Black "mshuaau0"]
[Result "1-0"]
[WhiteElo "2520"]
[BlackElo "2165"]
[TimeControl "180+1"]
[EndTime "10:08:59 PDT"]
[Termination "chegueps won by checkmate"]

1. b3 {[%clk 0:02:55.3]} 1... d5 {[%clk 0:02:59.2]} 2. Bb2 {[%clk 0:02:55.2]}
2... c5 {[%clk 0:02:59]} 3. Nf3 {[%clk 0:02:52.1]} 3... Nc6 {[%clk 0:02:58.7]}
4. e3 {[%clk 0:02:50.6]} 4... a6 {[%clk 0:02:58.1]} 5. Be2 {[%clk 0:02:49]} 5...
Nf6 {[%clk 0:02:58.1]} 6. O-O {[%clk 0:02:47.5]} 6... e6 {[%clk 0:02:56.8]} 7.
d4 {[%clk 0:02:46.7]} 7... cxd4 {[%clk 0:02:54.3]} 8. exd4 {[%clk 0:02:43.4]}
8... Be7 {[%clk 0:02:53.8]} 9. Nbd2 {[%clk 0:02:39.2]} 9... O-O {[%clk
0:02:53.5]} 10. c4 {[%clk 0:02:38.9]} 10... b6 {[%clk 0:02:44.7]} 11. a3 {[%clk
0:02:37.9]} 11... Bb7 {[%clk 0:02:44.6]} 12. Rc1 {[%clk 0:02:32.4]} 12... Rc8
{[%clk 0:02:44.4]} 13. Qc2 {[%clk 0:01:14.3]} 13... h6 {[%clk 0:02:34.1]} 14.
Qb1 {[%clk 0:01:14]} 14... Qd7 {[%clk 0:02:27.5]} 15. Rfd1 {[%clk 0:01:08.9]}
15... Rfd8 {[%clk 0:02:27.1]} 16. Ne5 {[%clk 0:01:08.2]} 16... Qe8 {[%clk
0:02:21]} 17. Bf3 {[%clk 0:01:02]} 17... Ba8 {[%clk 0:01:53.2]} 18. h3 {[%clk
0:00:53.7]} 18... Nxe5 {[%clk 0:01:52.4]} 19. dxe5 {[%clk 0:00:52.2]} 19... Nd7
{[%clk 0:01:52.2]} 20. cxd5 {[%clk 0:00:47.4]} 20... Bxd5 {[%clk 0:01:50.6]} 21.
Bxd5 {[%clk 0:00:46.8]} 21... exd5 {[%clk 0:01:50.6]} 22. Qf5 {[%clk 0:00:46.3]}
22... Rxc1 {[%clk 0:01:48.1]} 23. Rxc1 {[%clk 0:00:42.7]} 23... Bg5 {[%clk
0:01:45.8]} 24. f4 {[%clk 0:00:38.1]} 24... Be7 {[%clk 0:01:34.8]} 25. b4 {[%clk
0:00:38.4]} 25... Nf8 {[%clk 0:01:30.2]} 26. Nf3 {[%clk 0:00:38.1]} 26... Ne6
{[%clk 0:01:29.7]} 27. Nd4 {[%clk 0:00:38.2]} 27... Nxd4 {[%clk 0:01:27.5]} 28.
Bxd4 {[%clk 0:00:39.1]} 28... b5 {[%clk 0:01:02.3]} 29. Rc7 {[%clk 0:00:38.8]}
29... Bf8 {[%clk 0:01:02.5]} 30. Kh2 {[%clk 0:00:37]} 30... g6 {[%clk
0:00:57.6]} 31. Qf6 {[%clk 0:00:36.4]} 31... Bg7 {[%clk 0:00:57.3]} 32. Qxa6
{[%clk 0:00:36.2]} 32... g5 {[%clk 0:00:54.3]} 33. g3 {[%clk 0:00:32.9]} 33...
gxf4 {[%clk 0:00:54.5]} 34. gxf4 {[%clk 0:00:33]} 34... Ra8 {[%clk 0:00:54.9]}
35. Ra7 {[%clk 0:00:29]} 35... Rxa7 {[%clk 0:00:53.6]} 36. Qxa7 {[%clk
0:00:29.9]} 36... Qc8 {[%clk 0:00:53]} 37. Kg3 {[%clk 0:00:26.3]} 37... Qc1
{[%clk 0:00:45]} 38. Qa8+ {[%clk 0:00:26.1]} 38... Kh7 {[%clk 0:00:44.5]} 39.
Qxd5 {[%clk 0:00:26.5]} 39... Qxa3+ {[%clk 0:00:44.6]} 40. Qf3 {[%clk
0:00:24.3]} 40... Qxb4 {[%clk 0:00:42.2]} 41. Qe4+ {[%clk 0:00:24.8]} 41... Kg8
{[%clk 0:00:41.9]} 42. f5 {[%clk 0:00:25.7]} 42... Qb3+ {[%clk 0:00:39.7]} 43.
Kh4 {[%clk 0:00:25.4]} 43... Qc4 {[%clk 0:00:23.3]} 44. Qa8+ {[%clk 0:00:17.5]}
44... Kh7 {[%clk 0:00:23]} 45. Qe4 {[%clk 0:00:18.4]} 45... Bf8 {[%clk
0:00:19.1]} 46. e6 {[%clk 0:00:10.4]} 46... f6 {[%clk 0:00:15.4]} 47. e7 {[%clk
0:00:09.6]} 47... Bxe7 {[%clk 0:00:14.3]} 48. Qxe7+ {[%clk 0:00:10.5]} 48... Kg8
{[%clk 0:00:14.7]} 49. Qe8+ {[%clk 0:00:10.8]} 49... Kg7 {[%clk 0:00:14.3]} 50.
Qg6+ {[%clk 0:00:11.7]} 50... Kf8 {[%clk 0:00:14]} 51. Qxf6+ {[%clk 0:00:09.7]}
51... Qf7 {[%clk 0:00:13.6]} 52. Qxf7+ {[%clk 0:00:09.4]} 52... Kxf7 {[%clk
0:00:14.5]} 53. Kh5 {[%clk 0:00:10.3]} 53... Ke7 {[%clk 0:00:12.5]} 54. Kxh6
{[%clk 0:00:10.2]} 54... Kd6 {[%clk 0:00:12.8]} 55. Kg7 {[%clk 0:00:09.9]} 55...
Kd5 {[%clk 0:00:13.3]} 56. Ba1 {[%clk 0:00:10.8]} 56... b4 {[%clk 0:00:13.3]}
57. f6 {[%clk 0:00:11.7]} 57... b3 {[%clk 0:00:13.7]} 58. f7 {[%clk 0:00:11.5]}
58... Kc4 {[%clk 0:00:12.6]} 59. f8=Q {[%clk 0:00:11.9]} 59... b2 {[%clk
0:00:12.7]} 60. Bxb2 {[%clk 0:00:09.9]} 60... Kb3 {[%clk 0:00:12.6]} 61. Bf6
{[%clk 0:00:10.8]} 61... Kc2 {[%clk 0:00:12.6]} 62. h4 {[%clk 0:00:11.7]} 62...
Kd3 {[%clk 0:00:12.8]} 63. h5 {[%clk 0:00:12.6]} 63... Ke4 {[%clk 0:00:13]} 64.
h6 {[%clk 0:00:13.5]} 64... Kf3 {[%clk 0:00:12.8]} 65. h7 {[%clk 0:00:14.4]}
65... Ke2 {[%clk 0:00:12.1]} 66. h8=Q {[%clk 0:00:15.3]} 66... Kd1 {[%clk
0:00:10.8]} 67. Qf7 {[%clk 0:00:16.2]} 67... Kc2 {[%clk 0:00:11.7]} 68. Kg8
{[%clk 0:00:17.1]} 68... Kd2 {[%clk 0:00:11.6]} 69. Kf8 {[%clk 0:00:18]} 69...
Ke3 {[%clk 0:00:12]} 70. Qhg7 {[%clk 0:00:18.9]} 70... Kd3 {[%clk 0:00:12.5]}
71. Bg5 {[%clk 0:00:19.8]} 71... Ke4 {[%clk 0:00:13.4]} 72. Bh6 {[%clk
0:00:20.7]} 72... Kd3 {[%clk 0:00:14.1]} 73. Qe6 {[%clk 0:00:20.7]} 73... Kc2
{[%clk 0:00:15]} 74. Qgd7 {[%clk 0:00:21.6]} 74... Kb1 {[%clk 0:00:15.9]} 75.
Qec6 {[%clk 0:00:22.5]} 75... Ka2 {[%clk 0:00:16.8]} 76. Qdb7 {[%clk 0:00:23.4]}
76... Ka1 {[%clk 0:00:16.9]} 77. Qca6# {[%clk 0:00:24.3]} 1-0